lending/lending_fUSD_20240604
["ID","MTS","AMOUNT","RATE_DAILY","PERIOD"]
[328538805,1717507841121,-3933.36463944,0.0003,2]
[328538806,1717507841137,-4432.26839026,0.0003,2]
[328538807,1717507841149,-6757.96750055,0.0003,2]
[328538808,1717507841160,-40392.07785512,0.0003,2]
[328538809,1717507841172,-1617.592005,0.0003,2]
[328538810,1717507841183,-1363.68834929,0.0003,2]
[328538811,1717507841195,-2023.404,0.0003,2]
[328538812,1717507841207,-1291.88624753,0.0003,2]
[328538813,1717507841219,-3105.7658816,0.0003,2]
[328538814,1717507841230,-1245.11315137,0.0003,2]
[328538819,1717507841999,-728.05842579,0.0003,2]
[328538820,1717507842012,-861.78488582,0.0003,2]
[328538821,1717507842092,-3794.64809362,0.0003,2]
[328538822,1717507842104,-2751.18790302,0.0003,2]
[328538823,1717507842115,-1707.24344671,0.0003,2]
[328538837,1717507843291,-5477.68646314,0.0003,2]
[328538838,1717507843303,-1601.92641799,0.0003,2]
[328538843,1717507843372,-1830.93248754,0.0003,2]
[328538849,1717507843450,-138177.50136056,0.0003,2]
[328538860,1717507843801,-199.0,0.0003,5]
[328538861,1717507843811,-4823.70665959,0.0003,2]
[328538897,1717507846329,-150.0,0.00017717,2]
[328538899,1717507846339,-150.0,0.00017726,2]
[328538901,1717507846348,-440.0,0.00028535,2]
[328538903,1717507846358,-321.75437644,0.00029999,2]
[328538904,1717507846367,-4310.75952497,0.0003,2]
[328538905,1717507846541,-1730.85626812,0.0003,2]
[328538906,1717507847157,-22677.34000251,0.0003,2]
[328539355,1717509031578,-528.592,0.00010999,2]
[328539359,1717509031827,-2.21167811,0.00010999,2]
[328539360,1717509031836,-783.17738963,0.00011,2]
[328539361,1717509031846,-30.41471508,0.000139,2]
[328539362,1717509031859,-266.02253848,0.000139,2]
[328539363,1717509031868,-3384.04340712,0.00013995,2]
[328539364,1717509031877,-4610.3336856,0.00013996,2]
[328539365,1717509031886,-1979.48660224,0.00013997,2]
[328539366,1717509031895,-150.0,0.00013999,2]
[328539367,1717509031904,-150.0,0.00013999,2]
[328539368,1717509031914,-358205.96667247,0.00014,2]
[328539369,1717509031923,-81200.16981454,0.00014,2]
[328539371,1717509031932,-7686.66905294,0.00017225,2]
[328539373,1717509031941,-1050.41,0.0001726,2]
[328539375,1717509031950,-499.99,0.00017534,2]
[328539377,1717509031959,-3294.0,0.000214,3]
[328539379,1717509031968,-750.0,0.000214,3]
[328539381,1717509031977,-2205.89534978,0.00022895,2]
[328539383,1717509031986,-659.37727566,0.000229,5]
[328539385,1717509031995,-150.79,0.00024384,2]
[328539387,1717509032004,-158.46,0.00024384,2]
[328539389,1717509032014,-259.49,0.00024508,2]
[328539391,1717509032023,-200.0,0.00026336,2]
[328539393,1717509032037,-627.99,0.00026517,2]
[328539395,1717509032046,-158.89,0.00026588,2]
[328539397,1717509032055,-259.49,0.00026772,2]
[328539399,1717509032065,-158.89,0.00026786,2]
[328539401,1717509032075,-158.89,0.00026984,2]
[328539403,1717509032084,-150.0,0.00027011,2]
[328539405,1717509032093,-250.0,0.00027011,2]
[328539406,1717509032105,-250.0,0.00027137,2]
[328539407,1717509032114,-1000.0,0.00027146,2]
[328539408,1717509032123,-158.89,0.00027181,2]
[328539409,1717509032133,-1233.99,0.00027203,2]
[328539410,1717509032142,-158.89,0.00027379,2]
[328539411,1717509032150,-171.21,0.00027484,2]
[328539412,1717509032160,-158.89,0.00027577,2]
[328539413,1717509032168,-158.89,0.00027775,2]
[328539414,1717509032177,-177.68,0.00027951,2]
[328539415,1717509032186,-158.89,0.00027973,2]
[328539416,1717509032195,-1076.542,0.00028535,2]
[328539417,1717509032204,-871.0,0.00028535,2]
[328539418,1717509032213,-614.0,0.00028535,2]
[328539419,1717509032222,-1224.0,0.00028535,2]
[328539420,1717509032231,-37989.0,0.00028535,2]
[328539421,1717509032240,-4784.062,0.00028535,2]
[328539422,1717509032248,-236.14,0.00028591,2]
[328539423,1717509032257,-13316.0,0.00028912,2]
[328539424,1717509032266,-200.0,0.00029013,2]
[328539425,1717509032275,-259.49,0.00029036,2]
[328539426,1717509032284,-872.42,0.00029041,2]
[328539427,1717509032293,-442.68,0.00029041,2]
[328539428,1717509032303,-872.42,0.00029041,2]
[328539429,1717509032312,-867.21,0.00029041,2]
[328539430,1717509032320,-172.83,0.00029148,2]
[328539431,1717509032329,-151.70879006,0.00029337,2]
[328539432,1717509032339,-153.05703102,0.00029386,2]
[328539433,1717509032351,-151.70879006,0.00029415,2]
[328539434,1717509032360,-160.58283668,0.00029421,2]
[328539435,1717509032368,-162.47249196,0.00029423,2]
[328539436,1717509032377,-154.3225918,0.00029436,2]
[328539437,1717509032387,-152.30703779,0.00029476,2]
[328539438,1717509032395,-154.3225918,0.00029509,2]
[328539439,1717509032404,-154.3225918,0.00029514,2]
[328539440,1717509032413,-154.3225918,0.00029546,2]
[328539441,1717509032423,-547.02,0.00029562,2]
[328539442,1717509032432,-872.42,0.00029562,2]
[328539443,1717509032441,-872.42,0.00029562,2]
[328539444,1717509032450,-416.87,0.00029562,2]
[328539445,1717509032458,-416.87,0.00029562,2]
[328539446,1717509032467,-329.14,0.00029562,2]
[328539447,1717509032476,-2507.56,0.00029573,2]
[328539448,1717509032485,-500.0,0.00029589,6]
[328539449,1717509032495,-220.28156544,0.00029589,6]
[328539450,1717509032504,-500.0,0.00029589,6]
[328539451,1717509032513,-500.0,0.00029589,6]
[328539452,1717509032523,-500.0,0.00029589,6]
[328539453,1717509032532,-500.0,0.00029589,6]
[328539454,1717509032541,-500.0,0.00029589,6]
[328539455,1717509032550,-500.0,0.00029589,6]
[328539456,1717509032560,-517.26339882,0.00029589,6]
[328539457,1717509032570,-500.0,0.00029589,6]
[328539458,1717509032579,-500.0,0.00029589,6]
[328539459,1717509032588,-346.19,0.00029589,6]
[328539460,1717509032597,-511.19177051,0.00029589,6]
[328539461,1717509032609,-500.0,0.00029589,6]
[328539462,1717509032618,-500.0,0.00029589,6]
[328539463,1717509032627,-500.0,0.00029589,6]
[328539464,1717509032636,-154.81373107,0.00029589,6]
[328539465,1717509032645,-500.0,0.00029589,6]
[328539466,1717509032655,-500.0,0.00029589,6]
[328539467,1717509032664,-500.0,0.00029589,6]
[328539468,1717509032673,-500.0,0.00029589,6]
[328539469,1717509032682,-500.0,0.00029589,6]
[328539470,1717509032691,-1245.56,0.00029589,6]
[328539471,1717509032701,-1245.56,0.00029589,6]
[328539472,1717509032710,-242.475,0.00029589,6]
[328539473,1717509032719,-151.70879006,0.00029658,2]
[328539474,1717509032728,-162.47249196,0.00029683,2]
[328539475,1717509032738,-412.17126416,0.00029696,2]
[328539476,1717509032747,-152.30703779,0.00029712,2]
[328539477,1717509032756,-500.0,0.0002976,2]
[328539478,1717509032766,-200.0,0.0002976,2]
[328539479,1717509032775,-170.3,0.00029768,10]
[328539480,1717509032784,-154.97739494,0.00029778,2]
[328539481,1717509032794,-204.35,0.00029793,10]
[328539482,1717509032803,-300.0,0.00029798,2]
[328539483,1717509032813,-151.69344044,0.00029803,2]
[328539484,1717509032822,-245.22,0.00029817,10]
[328539485,1717509032831,-155.6087855,0.00029827,2]
[328539486,1717509032840,-166.66666667,0.00029834,2]
[328539487,1717509032849,-151.69344044,0.00029841,2]
[328539488,1717509032860,-152.30703779,0.0002985,2]
[328539489,1717509032869,-162.53788366,0.00029889,2]
[328539490,1717509032878,-150.0,0.00029894,2]
[328539491,1717509032887,-154.3225918,0.00029894,2]
[328539492,1717509032897,-1206.3982,0.00029898,2]
[328539493,1717509032905,-1000.0,0.00029898,2]
[328539494,1717509032914,-44054.207,0.00029898,2]
[328539495,1717509032923,-2113.95905687,0.00029899,2]
[328539496,1717509032932,-500.0,0.00029899,6]
[328539497,1717509032941,-500.0,0.00029899,6]
[328539498,1717509032950,-500.0,0.00029899,6]
[328539499,1717509032959,-1245.56,0.00029899,6]
[328539500,1717509032968,-2113.95905685,0.00029899,2]
[328539501,1717509032977,-2113.95905685,0.00029899,2]
[328539502,1717509032986,-2113.95905685,0.00029899,2]
[328539503,1717509032995,-2113.95905685,0.00029899,2]
[328539504,1717509033004,-2113.95905685,0.00029899,2]
[328539505,1717509033014,-2113.95905685,0.000299,2]
[328539506,1717509033023,-2113.95905685,0.000299,2]
[328539507,1717509033037,-2113.95905685,0.000299,2]
[328539508,1717509033046,-2113.95905685,0.000299,2]
[328539509,1717509033055,-2113.95905685,0.000299,2]
[328539510,1717509033064,-250000.0,0.000299,2]
[328539511,1717509033074,-153.05703102,0.000299,2]
[328539512,1717509033083,-2113.95905685,0.000299,2]
[328539513,1717509033092,-154.3225918,0.00029942,2]
[328539514,1717509033103,-1233.99,0.00029943,2]
[328539515,1717509033113,-150.0,0.00029961,2]
[328539516,1717509033123,-150.0,0.00029972,2]
[328539517,1717509033132,-4112.7749096,0.0002998,7]
[328539518,1717509033141,-162.53788366,0.0002999,2]
[328539519,1717509033149,-162.53788366,0.0002999,2]
[328539520,1717509033159,-500.0,0.00029997,6]
[328539521,1717509033167,-500.0,0.00029997,6]
[328539522,1717509033177,-500.0,0.00029997,6]
[328539523,1717509033186,-1245.56,0.00029997,6]
[328539524,1717509033196,-131176.36298725,0.00029998,13]
[328539525,1717509033206,-1238.53296076,0.00029998,2]
[328539526,1717509033216,-1081.02698719,0.00029998,2]
[328539527,1717509033225,-648.94255943,0.00029998,2]
[328539528,1717509033234,-1531.67403765,0.00029998,2]
[328539529,1717509033243,-658.24107386,0.00029998,2]
[328539530,1717509033252,-462.47868204,0.00029998,2]
[328539531,1717509033262,-155.0,0.00029998,2]
[328539532,1717509033271,-325.39983263,0.00029998,2]
[328539533,1717509033280,-428.90206147,0.00029998,2]
[328539534,1717509033289,-480.88976442,0.00029998,2]
[328539535,1717509033298,-155.0,0.00029998,2]
[328539536,1717509033307,-790.98303269,0.00029998,2]
[328539537,1717509033317,-326.36039384,0.00029998,2]
[328539538,1717509033326,-237.7692352,0.00029998,2]
[328539539,1717509033335,-502.67015523,0.00029998,2]
[328539540,1717509033343,-141655.24365132,0.00029998,2]
[328539541,1717509033353,-363.81174653,0.00029998,2]
[328539542,1717509033462,-533.81225347,0.00029998,2]
[328539543,1717509033472,-500.0,0.00029998,6]
[328539544,1717509033481,-542.00347646,0.00029998,2]
[328539545,1717509033490,-194.0,0.00029998,5]
[328539546,1717509033499,-298.77192098,0.00029999,2]
[328539547,1717509033508,-500.0,0.00029999,6]
[328539548,1717509033517,-500.0,0.00029999,6]
[328539549,1717509033526,-500.0,0.00029999,6]
[328539550,1717509033535,-500.0,0.00029999,6]
[328539551,1717509033544,-500.0,0.00029999,6]
[328539552,1717509033553,-509.65301347,0.00029999,6]
[328539553,1717509033562,-445.80035759,0.00029999,6]
[328539554,1717509033571,-500.0,0.00029999,6]
[328539555,1717509033581,-500.0,0.00029999,6]
[328539556,1717509033590,-500.0,0.00029999,6]
[328539557,1717509033600,-500.0,0.00029999,6]
[328539558,1717509033611,-5022.90937078,0.00029999,5]
[328539559,1717509033620,-500.0,0.00029999,6]
[328539560,1717509033629,-500.0,0.00029999,6]
[328539561,1717509033638,-500.0,0.00029999,6]
[328539562,1717509033647,-518.75968992,0.00029999,6]
[328539563,1717509033656,-500.0,0.00029999,6]
[328539564,1717509033665,-500.0,0.00029999,6]
[328539565,1717509033674,-500.0,0.00029999,6]
[328539566,1717509033684,-500.0,0.00029999,6]
[328539567,1717509033693,-500.0,0.00029999,6]
[328539568,1717509033702,-500.0,0.00029999,6]
[328539569,1717509033711,-500.0,0.00029999,6]
[328539570,1717509033720,-405.9004225,0.00029999,6]
[328539571,1717509033729,-500.0,0.00029999,6]
[328539572,1717509033739,-157.78136279,0.00029999,6]
[328539573,1717509033749,-176.17159456,0.00029999,6]
[328539574,1717509033758,-785.68348,0.00029999,2]
[328539575,1717509033768,-500.0,0.00029999,6]
[328539576,1717509033777,-500.0,0.00029999,6]
[328539577,1717509033787,-500.0,0.00029999,6]
[328539578,1717509033796,-500.0,0.00029999,6]
[328539579,1717509033806,-500.0,0.00029999,6]
[328539580,1717509033816,-500.0,0.00029999,6]
[328539581,1717509033825,-500.0,0.00029999,6]
[328539582,1717509033834,-500.0,0.00029999,6]
[328539583,1717509033844,-500.0,0.00029999,6]
[328539584,1717509033854,-518.09448813,0.00029999,6]
[328539585,1717509033863,-500.0,0.00029999,6]
[328539586,1717509033871,-156.86,0.00029999,6]
[328539587,1717509033880,-500.0,0.00029999,6]
[328539588,1717509033890,-483.38,0.00029999,6]
[328539589,1717509033899,-1245.56,0.00029999,6]
[328539590,1717509033908,-1245.56,0.00029999,6]
[328539591,1717509033917,-1245.56,0.00029999,6]
[328539592,1717509033927,-1245.56,0.00029999,6]
[328539593,1717509033936,-1245.56,0.00029999,6]
[328539594,1717509033945,-1245.56,0.00029999,6]
[328539595,1717509033954,-1245.56,0.00029999,6]
[328539596,1717509033963,-1245.56,0.00029999,6]
[328539597,1717509033972,-1245.56,0.00029999,6]
[328539598,1717509033981,-1245.56,0.00029999,6]
[328539599,1717509033990,-1245.56,0.00029999,6]
[328539600,1717509033998,-1245.56,0.00029999,6]
[328539601,1717509034008,-1245.56,0.00029999,6]
[328539602,1717509034017,-1245.56,0.00029999,6]
[328539603,1717509034026,-1245.56,0.00029999,6]
[328539604,1717509034038,-1245.56,0.00029999,6]
[328539605,1717509034047,-1245.56,0.00029999,6]
[328539606,1717509034056,-1245.56,0.00029999,6]
[328539607,1717509034066,-1245.56,0.00029999,6]
[328539608,1717509034075,-1245.77,0.00029999,6]
[328539609,1717509034084,-299.58469868,0.0003,5]
[328539610,1717509034093,-255359.49690786,0.0003,2]
[328539625,1717509037470,-500.0,0.00029589,6]
[328539627,1717509037480,-345.02,0.0003,2]
[328539629,1717509037492,-4756.280333,0.0003,2]
[328539637,1717509037568,-378.88143139,0.0003,2]
[328539639,1717509037579,-3360.28349679,0.0003,2]
[328539647,1717509037660,-7351.51509388,0.0003,2]
[328539650,1717509037672,-3076.68532998,0.0003,2]
[328539652,1717509037684,-30610.94214679,0.0003,2]
[328539659,1717509037743,-272.57814787,0.0003,2]
[328539670,1717509037849,-24888.08553749,0.0003,2]
[328539673,1717509037863,-3392.16185394,0.0003,2]
[328539677,1717509037874,-2710.1730784,0.0003,2]
[328539713,1717509042697,-851.5,0.0002999,10]
[328539714,1717509042707,-3384.04340712,0.00029998,2]
[328539715,1717509042718,-277.43106948,0.00029999,2]
[328539716,1717509042728,-865.2824544,0.0003,2]
[328539717,1717509042817,-7721.68204892,0.0003,2]
[328539718,1717509042973,-4400.75038927,0.0003,2]
[328539719,1717509042992,-589.57945547,0.0003,2]
[328539720,1717509043003,-1663.12439327,0.0003,2]
[328539721,1717509043869,-508.28687562,0.0003,2]
[328539722,1717509043881,-18674.00774773,0.0003,2]
[328539723,1717509043892,-945.75949995,0.0003,2]
[328539724,1717509043906,-4660.02436127,0.0003,2]
[328539725,1717509043917,-5285.85759363,0.0003,2]
[328539726,1717509043928,-382005.0908159,0.0003,2]
[328539727,1717509043939,-150349.4438977,0.0003,2]
[328539728,1717509043961,-268.77602007,0.0003,2]
[328539729,1717509043975,-757.77219,0.0003,2]
[328539730,1717509043986,-276.03969957,0.0003,2]
[328539775,1717509044903,-404.78636156,0.0003,2]
[328539776,1717509044914,-54516.02631495,0.0003,2]
[328539777,1717509044926,-3512.54571817,0.0003,2]
[328539779,1717509045026,-2950.0287793,0.0003,2]
[328539781,1717509045042,-540.18000005,0.0003,2]
[328539866,1717509045775,-19108.48589469,0.0003,2]
[328539868,1717509045787,-9763.71130001,0.0003,2]
[328539870,1717509045798,-429.75631163,0.0003,2]
[328539872,1717509045809,-402.55786998,0.0003,2]
[328539873,1717509045821,-22680.16558019,0.0003,2]
[328539874,1717509045832,-627.4122459,0.0003,2]
[328539875,1717509045843,-1064.42693562,0.0003,2]
[328539876,1717509045892,-652.5533043,0.0003,2]
[328539877,1717509045903,-1606.92194789,0.0003,2]
[328539878,1717509045914,-2672.07052477,0.0003,2]
[328539879,1717509045924,-1392.53930154,0.0003,2]
[328539880,1717509045935,-877.253116,0.0003,2]
[328539881,1717509046004,-265.15710906,0.00029998,2]
[328540192,1717510231936,-4610.3336856,0.00016831,2]
[328540193,1717510231949,-361.74307096,0.00016831,2]
[328540194,1717510231961,-86.45867398,0.00016831,2]
[328540195,1717510231970,-1045.73889184,0.00016832,2]
[328540196,1717510231982,-872.81,0.00016832,2]
[328540197,1717510234926,-1465.49451528,0.00016832,2]
[328540198,1717510234935,-1979.48660224,0.00016833,2]
[328540199,1717510234945,-150.0,0.00016936,2]
[328540200,1717510234955,-107133.21322054,0.00016939,2]
[328540250,1717510237800,-1095.13595756,0.00016731,2]
[328540253,1717510237810,-16841.79923043,0.00016939,2]
[328540255,1717510237822,-496.816951,0.00016939,2]
[328540268,1717510237943,-5093.7,0.00016939,2]
[328540269,1717510237955,-854.32737745,0.00016939,2]
[328540270,1717510237967,-12827.09582558,0.00016939,2]
[328540271,1717510237976,-2033.3109,0.00016945,2]
[328540273,1717510237986,-210.0,0.0001863,2]
[328540275,1717510237995,-150.99,0.0001863,2]
[328540277,1717510238005,-226.54621656,0.000201,2]
[328540279,1717510238014,-1222.0,0.00021467,2]
[328540281,1717510238024,-151.58,0.00024384,2]
[328540283,1717510238033,-159.29,0.00024384,2]
[328540285,1717510238044,-286.23,0.00025492,2]
[328540287,1717510238054,-16621.63333667,0.00026,5]
[328540289,1717510238063,-250.0,0.0002678,2]
[328540291,1717510238073,-10000.0,0.00026866,2]
[328540293,1717510238083,-996.36,0.00027078,2]
[328540295,1717510238092,-23890.0,0.00027335,2]
[328540297,1717510238102,-1000.0,0.00027521,2]
[328540299,1717510238113,-150.0,0.00027578,2]
[328540301,1717510238123,-286.23,0.00027756,2]
[328540303,1717510238133,-196.78,0.00028243,2]
[328540305,1717510238142,-5904.24834815,0.00028535,2]
[328540307,1717510238153,-3939.0867822,0.00028535,2]
[328540309,1717510238164,-4852.6012,0.00028535,2]
[328540311,1717510238176,-12679.89766965,0.00028535,2]
[328540313,1717510238186,-151.69344044,0.00029386,2]
[328540315,1717510238195,-152.30703779,0.00029456,2]
[328540317,1717510238204,-166.66666668,0.00029585,2]
[328540319,1717510238214,-345.61502096,0.00029589,2]
[328540321,1717510238223,-160.0772059,0.00029606,2]
[328540323,1717510238232,-153.7265357,0.0002965,2]
[328540325,1717510238242,-152.0,0.00029651,3]
[328540327,1717510238252,-154.3225918,0.00029739,2]
[328540329,1717510238263,-508.41063202,0.00029747,2]
[328540331,1717510238272,-151.69344044,0.00029749,2]
[328540333,1717510238282,-500.0,0.0002976,2]
[328540334,1717510238292,-108.9874553,0.00029768,2]
[328540335,1717510238304,-43.31958249,0.00029768,2]
[328540336,1717510238313,-508.41063199,0.00029769,2]
[328540337,1717510238323,-332.26386932,0.00029791,2]
[328540338,1717510238334,-176.14676267,0.00029791,2]
[328540339,1717510238344,-500.0,0.00029799,6]
[328540340,1717510238353,-623.302561,0.00029799,6]
[328540341,1717510238364,-223.25164042,0.00029799,2]
[328540344,1717510238376,-389.77115885,0.00029799,2]
[328540346,1717510238385,-500.0,0.00029799,6]
[328540347,1717510238394,-500.0,0.00029799,6]
[328540348,1717510238407,-109.94784138,0.00029799,6]
[328540349,1717510238418,-348.88,0.00029799,6]
[328540350,1717510238430,-169.76233914,0.00029799,6]
[328540351,1717510238441,-145.06768376,0.00029799,6]
[328540352,1717510238454,-1865.03231624,0.00029799,6]
[328540353,1717510238463,-2010.1,0.00029799,6]
[328540354,1717510238473,-957.32,0.00029799,6]
[328540355,1717510238483,-746.03796364,0.00029799,6]
[328540356,1717510238496,-211.28203636,0.00029799,6]
[328540357,1717510238506,-488.51796364,0.00029799,6]
[328540358,1717510238518,-152.12203636,0.00029799,6]
[328540359,1717510238527,-640.64,0.00029799,6]
[328540360,1717510238537,-538.42,0.00029799,6]
[328540361,1717510238547,-538.42,0.00029799,6]
[328540362,1717510238556,-500.0,0.00029799,6]
[328540363,1717510238565,-500.0,0.00029799,6]
[328540364,1717510238574,-500.0,0.00029799,6]
[328540365,1717510238584,-500.0,0.00029799,6]
[328540366,1717510238594,-500.0,0.00029799,6]
[328540367,1717510238604,-500.0,0.00029799,6]
[328540368,1717510238616,-511.85538677,0.00029799,6]
[328540369,1717510238625,-500.0,0.00029799,6]
[328540370,1717510238634,-5460.18365926,0.000298,2]
[328540371,1717510238646,-3136.81634074,0.000298,2]
[328540372,1717510238655,-29163.27956054,0.000298,2]
[328540373,1717510238667,-487.44103442,0.000298,2]
[328540442,1717510241133,-1936.75042707,0.00026866,2]
[328540445,1717510241143,-3542.77043809,0.000298,2]
[328540447,1717510241155,-585.99,0.000298,2]
[328540449,1717510241167,-6006.79406441,0.000298,2]
[328540465,1717510241312,-303.27304,0.000298,2]
[328540467,1717510241324,-774.040005,0.000298,2]
[328540475,1717510242364,-3364.15,0.000298,2]
[328540476,1717510242376,-716.8094612,0.000298,2]
[328540478,1717510242510,-22238.49267672,0.000298,2]
[328540480,1717510242522,-1641.30252,0.000298,2]
[328540482,1717510242534,-2097.51940114,0.000298,2]
[328540483,1717510242546,-348.56782752,0.000298,2]
[328540503,1717510242963,-14320.29098337,0.000298,2]
[328540504,1717510242975,-33214.95729048,0.000298,2]
[328540505,1717510243102,-331194.32169711,0.000298,2]
[328540506,1717510243114,-4571.0,0.000298,2]
[328540507,1717510243123,-508.41063199,0.00029813,2]
[328540508,1717510243132,-996.36,0.00029817,2]
[328540509,1717510243141,-508.41063199,0.00029834,2]
[328540510,1717510243150,-151.70879006,0.00029847,2]
[328540511,1717510243159,-508.41063199,0.00029856,2]
[328540512,1717510243167,-508.41063199,0.00029878,2]
[328540513,1717510243177,-436.35040075,0.00029897,2]
[328540514,1717510243187,-436.35040069,0.00029897,2]
[328540515,1717510243196,-436.35040069,0.00029898,2]
[328540516,1717510243205,-436.35040069,0.00029898,2]
[328540517,1717510243215,-2010.1,0.00029898,6]
[328540518,1717510243224,-957.32,0.00029898,6]
[328540519,1717510243234,-500.0,0.00029898,6]
[328540520,1717510243243,-436.35040069,0.00029898,2]
[328540521,1717510243252,-436.35040069,0.00029898,2]
[328540522,1717510243262,-436.35040069,0.00029899,2]
[328540523,1717510243271,-436.35040069,0.00029899,2]
[328540524,1717510243280,-500.0,0.00029899,2]
[328540525,1717510243290,-436.35040069,0.00029899,2]
[328540526,1717510243300,-436.35040069,0.00029899,2]
[328540527,1717510243310,-436.35040069,0.000299,2]
[328540528,1717510243319,-843.0632,0.000299,2]
[328540529,1717510243329,-436.35040069,0.000299,2]
[328540530,1717510243339,-151.69344044,0.00029923,2]
[328540531,1717510243348,-153.05703102,0.00029931,2]
[328540532,1717510243357,-153.05703102,0.00029934,2]
[328540533,1717510243370,-538.42,0.00029944,6]
[328540534,1717510243379,-640.64,0.00029978,6]
[328540535,1717510243388,-2010.1,0.00029979,6]
[328540536,1717510243398,-2010.1,0.00029979,6]
[328540537,1717510243408,-2010.1,0.00029979,6]
[328540538,1717510243418,-957.32,0.00029979,6]
[328540539,1717510243429,-957.32,0.00029979,6]
[328540540,1717510243438,-957.32,0.00029979,6]
[328540541,1717510243447,-640.64,0.00029979,6]
[328540542,1717510243457,-640.64,0.00029979,6]
[328540543,1717510243466,-640.64,0.00029979,6]
[328540544,1717510243475,-538.42,0.00029979,6]
[328540545,1717510243484,-538.42,0.00029979,6]
[328540546,1717510243496,-538.42,0.00029979,6]
[328540547,1717510243505,-500.0,0.00029979,6]
[328540548,1717510243514,-500.0,0.00029979,6]
[328540549,1717510243523,-500.0,0.00029979,6]
[328540550,1717510243532,-500.0,0.00029979,6]
[328540551,1717510243542,-500.0,0.00029979,6]
[328540552,1717510243551,-500.0,0.00029979,6]
[328540553,1717510243560,-445.55367252,0.00029979,6]
[328540554,1717510243569,-159.0,0.0002998,5]
[328540555,1717510243578,-50429.41780125,0.0002998,13]
[328540579,1717510243874,-15158.76369238,0.0002998,13]
[328540581,1717510243883,-765735.03101981,0.0002998,2]
[328540585,1717510243893,-2010.1,0.00029997,6]
[328540589,1717510243902,-2010.1,0.00029997,6]
[328540592,1717510243911,-2010.1,0.00029997,6]
[328540595,1717510243920,-957.32,0.00029997,6]
[328540598,1717510243929,-957.32,0.00029997,6]
[328540601,1717510243938,-957.32,0.00029997,6]
[328540604,1717510243947,-640.64,0.00029997,6]
[328540606,1717510243957,-640.64,0.00029997,6]
[328540608,1717510243966,-640.64,0.00029997,6]
[328540610,1717510243975,-538.42,0.00029997,6]
[328540612,1717510243984,-538.42,0.00029997,6]
[328540614,1717510243993,-538.42,0.00029997,6]
[328540616,1717510244003,-500.0,0.00029997,6]
[328540618,1717510244012,-236.69,0.00029997,6]
[328540620,1717510244022,-155.0,0.00029998,2]
[328540622,1717510244031,-170.99813128,0.00029998,2]
[328540624,1717510244040,-1110.84432819,0.00029998,2]
[328540626,1717510244049,-1362.61061232,0.00029998,2]
[328540628,1717510244058,-362.72006922,0.00029998,2]
[328540630,1717510244068,-1355.83434163,0.00029998,2]
[328540632,1717510244077,-157.90877204,0.00029998,2]
[328540634,1717510244086,-657.26693931,0.00029998,2]
[328540636,1717510244096,-35394.24475189,0.00029998,2]
[328540638,1717510244105,-1046.18219115,0.00029998,2]
[328540640,1717510244116,-155.0,0.00029998,2]
[328540642,1717510244126,-337.66901818,0.00029998,7]
[328540644,1717510244135,-1202.58995576,0.00029998,2]
[328540646,1717510244144,-20255.39668758,0.00029998,2]
[328540648,1717510244154,-1262.35635403,0.00029998,2]
[328540650,1717510244163,-19763.89772466,0.00029998,2]
[328540652,1717510244172,-37559.36475608,0.00029998,2]
[328540653,1717510244182,-257.82046593,0.00029998,2]
[328540655,1717510244191,-548538.85586276,0.00029998,2]
[328540657,1717510244200,-1041.80097141,0.00029998,2]
[328540659,1717510244209,-446.52248219,0.00029998,2]
[328540661,1717510244218,-500.0,0.00029998,2]
[328540663,1717510244227,-410.55868637,0.00029998,2]
[328540665,1717510244236,-168.98643813,0.00029998,2]